{"text_format":"1","workbook":"xlsx","n_sheets":3,"sheets":["паспорт","додаток","variablesList"],"not_rendered":{"charts":0,"images":0,"macros":1,"external_links":0,"defined_names":3,"comments":0,"pivot_tables":0},"unopened":[],"bounds":{"document_bytes":16777216,"sheet_cells":100000,"rows_first":2000,"rows_last":500,"rows_between":2000,"halvings":0,"cell_chars":16384,"cell_head_chars":4096},"cells_cut":0,"cells_raw":0,"read":"whole","date_system":"1900"}

{"sheet":"паспорт","index":0,"n_rows":51,"n_cols":31,"rows_kept":51,"cut":false,"hidden":false,"merged":[[6,0,9,0],[49,1,49,26],[8,11,9,11],[41,18,42,18],[41,19,42,19],[41,14,42,14],[42,7,42,13],[41,15,42,15],[41,16,42,16],[41,17,42,17],[8,9,9,9],[8,10,9,10],[6,25,9,25],[45,1,45,26],[41,0,41,13],[8,3,9,3],[47,1,47,26],[43,20,43,27],[42,20,42,27],[41,20,41,27],[6,27,9,27],[8,8,9,8],[6,26,9,26],[6,24,9,24],[6,23,9,23],[8,1,9,1],[8,2,9,2],[8,5,9,5],[8,6,9,6],[8,4,9,4],[0,6,0,24],[1,6,1,24],[0,25,0,27],[4,23,4,24],[8,12,9,12],[4,21,4,22],[8,14,8,16],[8,17,8,19],[8,20,8,22],[7,14,7,22],[2,6,2,24],[4,26,4,27],[8,7,9,7],[6,1,7,12],[7,13,9,13],[6,13,6,22]]}
["ПАТ \"УКРТРАНСГАЗ\"",null,null,null,null,null,"ПАСПОРТ ФІЗИКО-ХІМІЧНИХ ПОКАЗНИКІВ ПРИРОДНОГО ГАЗУ  №  226"]
["Філія \"УМГ \"Львівтрансгаз\"",null,null,null,null,null,"переданого Бібрським ЛВУМГ та прийнятого  ПАТ \"Львівгаз\""]
["Бібрський п/м Бібрське ЛВУМГ ",null,null,null,null,null,"Маршрут № 226"]
["Вимірювальна хіміко-аналітична лабораторія"]
["Свідоцтво № РЛ 067/13 чинне до 16.04.2018 р.",null,null,null,null,null,null,null,null,null,"по газопроводу    Івацевичі - Долина ІІІ н.",null,null,null,null,null,null,null,null,null,null,"за період з",null,"2017-03-01",null," по","2017-03-31"]
[]
["Число місяця","Компонентний склад, % мол. ",null,null,null,null,null,null,null,null,null,null,null,"Фізико-хімічні показники газу обчислені на основі компонентного складу, 101,325 кПа",null,null,null,null,null,null,null,null,null,"Температура точки роси за вологою (Р = 3.92 МПа), °С","Температура точки роси за вуглеводнями, °С","Вміст сірководню, г/м3","Вміст меркаптанової сірки, г/м3","Вміст механічних домішок, г/м3"]
[null,null,null,null,null,null,null,null,null,null,null,null,null,"Густина абсолютна, кг/м3,при 20 °С, ","Температура вимірювання/згоряння при  20/25°С"]
[null,"метан, С1","етан, С2","пропан, С3","ізо-бутан, і-С4","н-бутан, н-С4","нео-пентан, нео-С5","ізо-пентан, і-С5","н-пентан, н-С5","гексани та вищі, С6+","кисень, О2","азот, N2","діоксид вуглецю, CО2",null,"Теплота згоряння нижча",null,null,"Теплота згоряння вища",null,null,"Число Воббе вище"]
[null,null,null,null,null,null,null,null,null,null,null,null,null,null," ккал/м³"," МДж/м³","кВт⋅год/м³"," ккал/м³"," МДж/м³","кВт⋅год/м³"," ккал/м³"," МДж/м³","кВт⋅год/м³",null,null,null,null,null,null,null,"  "]
[1,97.988,0.3866,0.19,3.6900000000000002E-2,8.0000000000000002E-3,6.9999999999999999E-4,4.1999999999999997E-3,2.9999999999999997E-4,1E-4,1.0500000000000001E-2,1.248,0.12670000000000001,0.68140000000000001,{"$f":"P11*238.8459","v":7932.0723390000003},33.21,{"$f":"P11/3.6","v":9.2249999999999996},{"$f":"S11*238.8459","v":8799.0829560000002},36.840000000000003,{"$f":"S11/3.6","v":10.233333333333334},11702,49,{"$f":"V11/3.6","v":13.611111111111111},-8.8000000000000007,null,null,null,null,{"$f":"SUM(B11:M11)+$K$42+$N$42","v":99.999999999999986}]
[2,null,null,null,null,null,null,null,null,null,null,null,null,null,{"$f":"P12*238.8459","v":7932.0723390000003},33.21,9.2249999999999996,{"$f":"S12*238.8459","v":8799.0829560000002},36.840000000000003,10.233333333333334,null,null,null,null,null,null,null,null,0]
[3,null,null,null,null,null,null,null,null,null,null,null,null,null,7932.0723390000003,33.21,9.2249999999999996,8799.0829560000002,36.840000000000003,10.233333333333334,null,null,null,null,null,null,null,null,0,{"$f":"IF(AC13=100,\"ОК\",\" \")","v":" "}]
[4,null,null,null,null,null,null,null,null,null,null,null,null,null,7932.0723390000003,33.21,9.2249999999999996,8799.0829560000002,36.840000000000003,10.233333333333334,null,null,null,null,null,null,null,null,0,{"$f":"IF(AC14=100,\"ОК\",\" \")","v":" "}]
[5,null,null,null,null,null,null,null,null,null,null,null,null,null,7932.0723390000003,33.21,9.2249999999999996,8799.0829560000002,36.840000000000003,10.233333333333334,null,null,null,null,null,null,null,null,0," "]
[6,null,null,null,null,null,null,null,null,null,null,null,null,null,7932.0723390000003,33.21,9.2249999999999996,8799.0829560000002,36.840000000000003,10.233333333333334,null,null,null,null,null,null,null,null,0," "]
[7,null,null,null,null,null,null,null,null,null,null,null,null,null,7932.0723390000003,33.21,9.2249999999999996,8799.0829560000002,36.840000000000003,10.233333333333334,null,null,null,null,null,null,null,null,0," "]
[8,null,null,null,null,null,null,null,null,null,null,null,null,null,7932.0723390000003,33.21,9.2249999999999996,8799.0829560000002,36.840000000000003,10.233333333333334,null,null,null,null,null,null,null,null,0," "]
[9,97.965299999999999,0.39810000000000001,0.20569999999999999,1.6299999999999999E-2,7.7999999999999996E-3,5.9999999999999995E-4,4.4000000000000003E-3,5.0000000000000001E-4,2.0000000000000001E-4,1.0500000000000001E-2,1.2439,0.14660000000000001,0.68149999999999999,7929.6838800000005,33.200000000000003,9.2222222222222232,8796.6944970000004,36.83,10.230555555555554,11697,48.98,{"$f":"V19/3.6","v":13.605555555555554},-17.7,null,0,0,0,99.999900000000011," "]
[10,null,null,null,null,null,null,null,null,null,null,null,null,null,null,null,null,null,null,null,null,null,null,null,null,null,null,null,0," "]
[11,null,null,null,null,null,null,null,null,null,null,null,null,null,null,null,null,null,null,null,null,null,null,null,null,null,null,null,0," "]
[12,null,null,null,null,null,null,null,null,null,null,null,null,null,null,null,null,null,null,null,null,null,null,null,null,null,null,null,0," "]
[13,null,null,null,null,null,null,null,null,null,null,null,null,null,null,null,null,null,null,null,null,null,null,null,null,null,null,null,0," "]
[14,null,null,null,null,null,null,null,null,null,null,null,null,null,null,null,null,null,null,null,null,null,null,null,null,null,null,null,0," "]
[15,null,null,null,null,null,null,null,null,null,null,null,null,null,null,null,null,null,null,null,null,null,null,null,null,null,null,null,0," "]
[16,null,null,null,null,null,null,null,null,null,null,null,null,null,null,null,null,null,null,null,null,null,null,null,null,null,null,null,0," "]
[17,null,null,null,null,null,null,null,null,null,null,null,null,null,null,null,null,null,null,null,null,null,null,null,null,null,null,null,0," "]
[18,null,null,null,null,null,null,null,null,null,null,null,null,null,null,null,null,null,null,null,null,null,null,null,null,null,null,null,0," "]
[19,null,null,null,null,null,null,null,null,null,null,null,null,null,null,null,null,null,null,null,null,null,null,null,null,null,null,null,0," "]
[20,null,null,null,null,null,null,null,null,null,null,null,null,null,null,null,null,null,null,null,null,null,null,null,null,null,null,null,0,{"$f":"IF(AC30=100,\"ОК\",\" \")","v":" "}]
[21,null,null,null,null,null,null,null,null,null,null,null,null,null,null,null,null,null,null,null,null,null,null,null,null,null,null,null,0," "]
[22,null,null,null,null,null,null,null,null,null,null,null,null,null,null,null,null,null,null,null,null,null,null,null,null,null,null,null,0," "]
[23,null,null,null,null,null,null,null,null,null,null,null,null,null,null,null,null,null,null,null,null,null,null,null,null,null,null,null,0,{"$f":"IF(AC33=100,\"ОК\",\" \")","v":" "}]
[24,null,null,null,null,null,null,null,null,null,null,null,null,null,null,null,null,null,null,null,null,null,null,null,null,null,null,null,0," "]
[25,null,null,null,null,null,null,null,null,null,null,null,null,null,null,null,null,null,null,null,null,null,null,null,null,null,null,null,0," "]
[26,null,null,null,null,null,null,null,null,null,null,null,null,null,null,null,null,null,null,null,null,null,null,null,null,null,null,null,0," "]
[27,null,null,null,null,null,null,null,null,null,null,null,null,null,null,null,null,null,null,null,null,null,null,null,null,null,null,null,0," "]
[28,null,null,null,null,null,null,null,null,null,null,null,null,null,null,null,null,null,null,null,null,null,null,null,null,null,null,null,0," "]
[29,null,null,null,null,null,null,null,null,null,null,null,null,null,null,null,null,null,null,null,null,null,null,null,null,null,null,null,0," "]
[30,null,null,null,null,null,null,null,null,null,null,null,null,null,null,null,null,null,null,null,null,null,null,null,null,null,null,null,0]
[31,null,null,null,null,null,null,null,null,null,null,null,null,null,null,null,null,null,null,null,null,null,null,null,null,null,null,null,{"$f":"SUM(B41:M41)+$K$42+$N$42","v":0}," "]
["Рівень одоризації відповідає чинним нормативним документам",null,null,null,null,null,null,null,null,null,null,null,null,null,7847.4665962752642,32.855772681361778,9.126603522600492,8705.2392652043236,36.447095240924483,10.124193122479022]
[null,null,null,null,null,null,null,"Середньозважене значення теплоти згоряння:"]
[]
[]
[null,"Начальник управління Бібрського ЛВУМГ                                                                                                      Саловський Б.Й.                                                                                      "]
[null,null,"Підрозділу підприємства, якому підпорядкована лабораторія",null,null,null,null,null,null,null,null,null,null,null,"прізвище",null,null,"підпис",null,null,null,"дата"]
[null,"Керівник лабораторії                                                                                                                                             Роїк Г.В.                                                                                                       "]
[null,null,"Лабораторія, де здійснювалось вимірювання газу",null,null,null,null,null,null,null,null,null,null,null,"прізвище",null,null,"підпис",null,null,null,"дата"]
[null,"Начальник служби метрології                                                                                                                               Карапата І.І."]
[null,null,"Підрозділу, відповідального за облік газу за маршрутом",null,null,null,null,null,null,null,null,null,null,null,"прізвище",null,null,"підпис",null,null,null,"дата"]

{"sheet":"додаток","index":1,"n_rows":16,"n_cols":6,"rows_kept":16,"cut":false,"hidden":false,"merged":[[0,0,0,1],[6,0,6,1],[3,2,3,4],[3,1,4,1],[3,0,4,0]]}
[]
["Додаток до Паспорту фізико-хімічних показників природного газу №226"]
[]
["Область","ГРС, прямий споживач","Cередньозважене значення вищої теплоти згоряння"]
[null,null," МДж/м³","ккал/м³","кВт*год./м³"]
["Львівська","ГРС Нове Село",36.450000000000003,8705,10.119999999999999]
["Середньозважене значення вищої теплоти згоряння по маршруту № 226",null,36.450000000000003,8705,10.119999999999999]
[]
[]
[]
["Начальник управління Бібрського ЛВУМГ                                Саловський Б.Й.                                                                                       "]
["Підрозділу підприємства, якому підпорядкована лабораторія",null,null,"прізвище","підпис","дата"]
["Керівник лабораторії                                                                          Роїк Г.В.                                                                                                      "]
["Лабораторія, де здійснювалось вимірювання газу",null,null,"прізвище","підпис","дата"]
["Начальник служби метрології",null,"                 Карапата І.І."]
["Підрозділу, відповідального за облік газу за маршрутом",null,null,"прізвище","підпис","дата"]

{"sheet":"variablesList","index":2,"n_rows":3,"n_cols":4,"rows_kept":3,"cut":false,"hidden":true,"merged":[]}
[3,"x:\\gaysin","10, 11, 24, 25, 127, 128, 132, 180, 207, 215","x:\\"]
[null,"x:\\Illinci"]
[null,"x:\\Talne"]